bitfinex-derivatives/quotes_ETHF0:USTF0_20250213
["timestamp","ask_amount","ask_price","bid_price","bid_amount"]
[1739461251370,3.2078,2661.2,2660.8,0.75159]
[1739461251371,0.75714179,2661.2,2660.8,0.75159]
[1739461251572,0.00563179,2661.2,2660.6,3.21343179]
[1739461251775,3.21343179,2661.2,2660.8,0.75158]
[1739461251971,3.21343179,2661.2,2660.7,0.5691]
[1739461252775,3.2078,2660.8,2660.1,0.75179]
[1739461252977,0.75165,2660.7,2660.3,0.75174]
[1739461253275,1.981,2661.0,2660.0,3.2078]
[1739461253474,0.75161,2660.8,2660.3,3.2078]
[1739461253771,3.2078,2660.8,2660.0,3.2078]
[1739461253977,0.7517,2660.5,2660.3,0.00563179]
[1739461254378,0.75173,2660.4,2660.3,0.00563179]
[1739461254570,3.2078,2660.5,2660.3,0.00563179]
[1739461254771,0.75173,2660.4,2660.3,0.00563179]
[1739461255173,0.5839,2660.7,2660.3,0.00563179]
[1739461255375,1.33556,2660.7,2660.4,0.75171]
[1739461255677,0.75168,2660.6,2660.3,0.00563179]
[1739461256270,3.2078,2660.6,2660.3,0.00563179]
[1739461256667,0.75173,2660.4,2660.3,0.00563179]
[1739461256879,4.63200298,2660.4,2660.3,0.00563179]
[1739461257081,6.61300298,2660.4,2660.3,0.00563179]
[1739461257280,6.61300298,2660.4,2660.3,0.05699993]
[1739461257981,0.75192,2659.7,2659.6,1.47168]
[1739461258880,1.31812,2659.7,2659.6,1.47168]
[1739461259583,3.29912,2659.7,2659.6,1.47168]
[1739461259877,3.2078,2660.3,2659.6,1.47168]
[1739461260079,1.31799,2660.2,2659.6,2.22362]
[1739461260284,0.75187,2659.9,2659.6,1.47168]
[1739461260484,3.2078,2660.0,2659.6,1.47168]
[1739461260976,3.2078,2660.0,2659.9,0.75187]
[1739461261171,3.2078,2660.0,2659.6,1.47168]
[1739461261378,0.5662,2660.2,2659.6,4.67948]
[1739461261578,0.5662,2660.2,2659.9,0.75187]
[1739461261783,0.5662,2660.2,2659.6,4.67948]
[1739461261978,0.5662,2660.2,2660.1,0.75181]
[1739461262573,0.5434,2660.5,2660.1,0.75181]
[1739461262782,3.2078,2660.9,2660.8,0.75161]
[1739461263189,3.2078,2660.9,2660.3,1.87939]
[1739461263485,3.95938,2660.9,2660.7,0.75163]
[1739461263686,3.9594,2660.9,2660.7,0.75162]
[1739461264281,3.2078,2660.9,2660.2,3.2078]
[1739461264681,3.2078,2660.9,2660.8,0.75161]
[1739461264886,3.2078,2660.9,2660.2,5.0872]
[1739461265084,3.95939,2660.9,2660.7,0.75162]
[1739461265282,3.2078,2660.9,2660.2,3.2078]
[1739461265482,3.88027298,2660.7,2659.9,3.2078]
[1739461265687,0.75159,2660.9,2660.7,0.75163]
[1739461265892,8.23317298,2661.0,2660.2,3.2078]
[1739461266186,3.95946,2660.7,2659.9,7.06946]
[1739461266387,3.2078,2660.7,2660.6,0.75167]
[1739461266587,3.2078,2660.7,2659.9,3.2078]
[1739461266891,0.75171,2660.5,2660.3,0.75174]
[1739461267089,7.08807298,2660.7,2660.0,1.8796]
[1739461267285,7.08807298,2660.7,2659.9,3.2078]
[1739461267485,3.2078,2660.4,2660.0,3.2078]
[1739461267683,3.2078,2660.4,2660.3,0.75175]
[1739461267885,3.2078,2660.9,2660.8,0.75159]
[1739461268287,3.9594,2660.9,2660.7,0.75162]
[1739461268490,0.75161,2660.8,2660.7,0.75162]
[1739461268692,0.75161,2660.8,2660.3,5.08719]
[1739461268893,3.9594,2660.9,2660.7,0.75162]
[1739461269191,3.2078,2660.9,2660.0,3.2078]
[1739461269490,3.2078,2660.9,2659.7,1.46237481]
[1739461269491,0.75173,2660.4,2660.2,0.75176]
[1739461269687,3.95948,2660.6,2660.4,0.75171]
[1739461269891,3.2078,2660.6,2660.5,0.7517]
[1739461270089,3.2078,2660.6,2660.1,1.87953]
[1739461270394,3.2078,2660.6,2659.8,1.87974]
[1739461270584,3.2078,2660.6,2660.5,0.7517]
[1739461270989,3.2078,2660.6,2660.2,1.87946]
[1739461270990,7.63487298,2661.0,2660.3,3.2078]
[1739461271193,0.5468,2661.0,2660.9,0.75158]
[1739461271880,0.5468,2661.0,2660.4,0.5903]
[1739461271881,0.00563179,2661.2,2660.6,5.08695]
[1739461272082,3.2078,2660.9,2659.7,0.29957481]
[1739461272289,3.2078,2660.2,2659.6,4.67948]
[1739461272789,3.2078,2660.2,2660.0,0.75183]
[1739461272986,3.2078,2660.2,2659.6,4.67948]
[1739461272987,3.95958,2660.2,2659.9,0.75186]
[1739461273287,3.2078,2660.5,2659.6,4.67948]
[1739461273686,3.2078,2660.5,2660.0,0.75183]
[1739461274087,0.75175,2660.4,2660.1,0.7518]
[1739461274287,3.2078,2660.5,2659.6,4.67948]
[1739461274688,0.75182,2660.1,2659.6,4.67948]
[1739461274889,3.88027298,2660.1,2659.6,1.47168]
[1739461275087,0.75192,2659.7,2659.6,1.47168]
[1739461276185,0.75214,2659.0,2658.8,1.103]
[1739461276387,0.75214,2659.0,2658.8,0.5451]
[1739461276587,0.75215,2658.9,2658.6,0.75222]
[1739461276782,3.2078,2659.1,2658.3,3.7749]
[1739461276990,0.75225,2658.6,2658.2,0.75234]
[1739461277190,3.2078,2658.8,2658.2,0.75235]
[1739461277191,0.75222,2658.7,2658.2,0.75235]
[1739461277396,0.00564249,2658.7,2658.1,0.31047125]
[1739461277590,0.00564249,2658.7,2658.3,0.7523]
[1739461277895,0.00564249,2658.7,2658.1,0.31047125]
[1739461278089,0.00564249,2658.7,2658.6,0.75223]
[1739461278390,0.00564249,2658.7,2658.5,0.75225]
[1739461278894,0.00564249,2658.7,2658.1,0.31047125]
[1739461278895,0.75225,2658.6,2658.2,0.75232]
[1739461279089,0.00564249,2658.7,2658.1,0.31047125]
[1739461279287,0.00564249,2658.7,2658.1,0.00382764]
[1739461279288,3.88027298,2658.3,2658.1,0.00382764]
[1739461280392,3.96015,2658.2,2658.1,0.00382764]
[1739461280992,3.2078,2658.2,2657.7,0.5922]
[1739461281491,3.2078,2657.9,2657.7,0.5922]
[1739461282089,3.96024,2657.9,2657.7,0.5922]
[1739461282290,0.75247,2657.8,2657.5,0.75253]
[1739461282493,3.2078,2657.9,2657.3,0.30913253]
[1739461282798,3.96025,2657.9,2657.6,0.75251]
[1739461282993,3.2078,2657.9,2657.1,1.1741]
[1739461283298,3.2078,2657.9,2657.5,0.75254]
[1739461283489,3.2078,2657.9,2657.1,3.05575]
[1739461283690,1.982,2658.1,2657.4,3.2078]
[1739461284091,0.75247,2657.8,2657.5,0.75253]
[1739461284291,3.88027298,2657.7,2657.3,0.30015485]
[1739461284594,3.88027298,2657.4,2657.1,0.30646681]
[1739461284796,3.88027298,2657.4,2656.7,3.2078]
[1739461284797,3.2078,2657.2,2656.7,3.2078]
[1739461284995,3.2078,2657.2,2657.1,0.75266]
[1739461285196,0.00564249,2657.2,2657.1,0.75266]
[1739461285895,0.00564249,2657.2,2657.1,1.05731901]
[1739461286199,0.00564249,2657.2,2657.1,7.05731901]
[1739461286586,3.88027298,2658.0,2657.1,47.10465901]
[1739461286791,0.75244,2657.9,2657.7,0.75247]
[1739461286992,3.88027298,2658.0,2657.9,0.75243]
[1739461287196,4.63267298,2658.0,2657.8,0.75243]
[1739461287597,4.63267298,2658.0,2657.3,3.2078]
[1739461287598,3.88027298,2658.0,2657.3,3.2078]
[1739461287798,3.88027298,2658.0,2657.9,0.75243]
[1739461287998,3.88027298,2658.0,2657.6,0.00564249]
[1739461288197,3.88027298,2658.0,2657.6,0.75813249]
[1739461288397,0.75243,2657.9,2657.7,0.75247]
[1739461288593,4.63269298,2658.0,2657.8,0.75246]
[1739461288788,0.75249,2657.7,2657.6,0.00564249]
[1739461288993,7.84056298,2657.7,2657.6,0.00564249]
[1739461290201,9.82256298,2657.7,2657.6,0.00564249]
[1739461292800,9.07007298,2657.7,2656.7,3.2078]
[1739461293007,7.08807298,2657.4,2656.7,3.50625175]
[1739461293194,7.08807298,2657.4,2656.8,0.75273]
[1739461293498,8.96955298,2657.4,2656.7,4.25901175]
[1739461293702,7.08807298,2657.4,2656.7,3.50625175]
[1739461293900,0.75264,2657.2,2657.0,0.75267]
[1739461294100,0.75262,2657.3,2657.1,0.75264]
[1739461294601,7.08807298,2657.7,2656.7,5.38815175]
[1739461294799,7.08807298,2657.7,2657.4,0.75255]
[1739461294800,0.75252,2657.6,2657.4,0.75255]
[1739461295100,1.88652249,2658.2,2657.3,3.2078]
[1739461295101,9.07107298,2658.0,2657.3,3.2078]
[1739461295305,3.96033,2657.6,2657.0,3.2078]
[1739461295604,9.07107298,2658.0,2657.0,3.8049]
[1739461295800,3.2078,2657.7,2657.1,0.5473]
[1739461296002,7.08807298,2657.7,2657.1,0.5473]
[1739461296204,3.2078,2657.3,2656.9,3.9605]
[1739461296506,0.75264,2657.2,2657.0,0.75267]
[1739461296703,3.96042,2657.3,2657.1,0.75266]
[1739461297002,3.96042,2657.3,2657.1,0.75264]
[1739461297207,3.96042,2657.3,2656.7,1.88189]
[1739461297505,3.2078,2657.3,2657.2,0.75263]
[1739461298704,0.75247,2657.8,2657.7,0.75247]
[1739461299097,1.30835,2657.9,2657.8,0.75246]
[1739461299411,0.75247,2657.8,2657.7,0.75246]
[1739461299704,1.983,2658.0,2657.4,1.88144]
[1739461299909,0.75241,2658.0,2657.9,0.75241]
[1739461301005,3.9602,2658.1,2657.5,1.88134]
[1739461301207,3.2078,2658.1,2657.5,1.88134]
[1739461301401,3.2078,2658.1,2657.4,1.88144]
[1739461301604,3.2078,2658.1,2657.3,3.1465]
[1739461301801,0.75245,2657.9,2657.7,0.75246]
[1739461302002,3.2078,2658.1,2657.4,0.75257]
[1739461302203,3.2078,2658.1,2657.3,5.02797]
[1739461302603,3.9602,2658.1,2658.0,0.7524]
[1739461302803,3.2078,2658.1,2657.5,1.88137]
[1739461303113,3.96019,2658.1,2658.0,0.7524]
[1739461303307,3.2078,2658.1,2657.6,3.2078]
[1739461303607,3.96019,2658.1,2658.0,0.7524]
[1739461303797,3.2078,2658.1,2658.0,0.7524]
[1739461304000,0.00564249,2658.2,2658.1,0.75238]
[1739461307302,0.75799249,2658.2,2658.1,0.75238]
[1739461307500,0.00564249,2658.2,2658.1,0.75238]
[1739461313208,0.75799249,2658.2,2658.1,0.75238]
[1739461313414,0.00564249,2658.2,2658.1,0.75238]
[1739461315115,0.75799249,2658.2,2658.1,0.75238]
[1739461315310,0.00564249,2658.2,2657.7,0.5689]
[1739461315518,0.75242,2658.1,2658.0,0.75238]
[1739461316202,0.00564249,2658.2,2657.8,1.88116]
[1739461316403,0.7524,2658.1,2658.0,0.75238]
[1739461316913,0.00564249,2658.2,2657.7,2.45012]
[1739461317110,0.75799249,2658.2,2657.7,2.45012]
[1739461317310,0.75799249,2658.2,2658.1,0.75238]
[1739461317615,0.00564249,2658.2,2658.1,0.75238]
[1739461318703,0.00564249,2658.2,2657.7,0.5689]
[1739461318911,0.75243,2658.0,2657.9,0.75241]
[1739461319212,0.75246,2657.9,2657.8,0.75244]
[1739461319809,0.75244,2658.0,2657.9,0.75241]
[1739461320114,0.75245,2657.9,2657.8,0.75243]
[1739461320907,0.75249,2657.7,2657.6,3.2078]
[1739461321114,3.34175933,2657.9,2657.1,1.88165]
[1739461321115,3.2078,2657.8,2657.1,1.88165]
[1739461321412,0.75254,2657.6,2657.5,0.75254]
[1739461321615,0.7525,2657.7,2657.6,0.75251]
[1739461321810,5.1888,2658.4,2657.7,0.75249]
[1739461322114,3.2078,2658.4,2658.1,0.75238]
[1739461322312,0.75233,2658.3,2658.1,0.75238]
[1739461322618,3.2078,2658.4,2658.1,0.75238]
[1739461323113,3.2078,2658.7,2658.1,0.75238]
[1739461323410,4.50405933,2659.1,2658.1,6.0]
[1739461323614,1.981,2659.3,2659.0,0.75212]
[1739461323615,0.75208,2659.2,2659.0,0.75212]
[1739461323809,1.981,2659.3,2658.6,0.5794]
[1739461324011,0.75214,2659.0,2658.8,0.75217]
[1739461324317,3.34175933,2659.1,2658.6,1.147]
[1739461324511,4.09385933,2659.1,2658.9,0.75215]
[1739461324811,1.7308,2659.7,2658.6,1.15264249]
[1739461324812,3.34175933,2660.0,2658.8,8.53055933]
[1739461325113,4.09360933,2660.0,2659.3,3.2078]
[1739461325314,3.34175933,2660.0,2659.3,3.2078]
[1739461325711,3.34175933,2660.0,2659.0,3.2078]
[1739461325712,3.2078,2659.8,2659.0,3.2078]
[1739461326017,3.2078,2659.8,2659.7,0.75192]
[1739461326215,0.00564249,2659.7,2659.0,3.2078]
[1739461326404,0.00564249,2659.7,2659.6,0.75194]
[1739461327009,0.00564249,2659.7,2659.5,0.75196]
[1739461327216,0.00564249,2659.7,2659.0,3.2078]
[1739461327517,0.00564249,2659.7,2659.6,0.75195]
[1739461327812,0.00564249,2659.7,2659.5,0.75196]
[1739461328009,0.75758249,2659.7,2659.4,0.75199]
[1739461328313,0.00564249,2659.7,2659.3,0.75203]
[1739461328617,0.75197,2659.6,2659.1,2.73209]
[1739461329011,0.00564249,2659.7,2659.1,1.98]
[1739461329507,3.2078,2659.5,2658.9,3.7554]
[1739461329708,3.2078,2659.2,2658.6,5.77284249]
[1739461330014,3.88400417,2659.6,2658.9,0.75214]
[1739461330015,0.75205,2659.3,2658.9,0.75214]
[1739461330215,0.5937,2659.4,2658.8,0.75218]
[1739461330516,0.75207,2659.2,2658.8,0.75216]
[1739461330712,0.5937,2659.4,2658.6,5.77284249]
[1739461330915,3.2078,2659.2,2658.6,5.77284249]
[1739461331211,0.75216,2658.9,2658.6,5.77284249]
[1739461331412,3.2078,2658.9,2658.6,0.00564249]
[1739461331614,0.75221,2658.7,2658.6,0.00564249]
[1739461332415,3.2078,2658.9,2658.6,0.00564249]
[1739461332614,0.75219,2658.8,2658.6,0.00564249]
[1739461333215,3.2078,2658.9,2658.6,0.00564249]
[1739461333820,3.2078,2658.9,2658.8,0.75218]
[1739461334015,3.2078,2659.2,2658.8,0.75218]
[1739461334220,3.88400417,2659.9,2659.4,0.75198]
[1739461334221,0.75191,2659.8,2659.4,0.75198]
[1739461334416,0.75189,2659.9,2659.5,0.75195]
[1739461334625,0.5725,2660.0,2659.6,0.75195]
[1739461334816,0.75188,2659.9,2659.6,0.75195]
[1739461335021,0.5725,2660.0,2659.4,3.2078]
[1739461335224,0.7519,2659.8,2659.4,3.2078]
[1739461335519,0.7519,2659.8,2659.5,0.75197]
[1739461335720,0.75189,2659.9,2659.6,0.75195]
[1739461336223,0.5725,2660.0,2659.6,0.75195]
[1739461336621,0.75182,2660.1,2659.6,0.75195]
[1739461336819,0.75187,2659.9,2659.6,0.75195]
[1739461337129,0.75185,2660.0,2659.6,0.75195]
[1739461337822,1.0989,2660.2,2659.6,0.75195]
[1739461338024,0.75183,2660.1,2659.6,0.75195]
[1739461338324,0.5562,2660.2,2659.5,2.4464]
[1739461338523,0.75181,2660.1,2660.0,3.2078]
[1739461338712,1.308,2660.2,2660.0,3.2078]
[1739461338909,0.5562,2660.2,2660.0,3.2078]
[1739461339113,0.75181,2660.1,2660.0,3.2078]
[1739461339520,1.30798,2660.2,2660.0,3.95962]
[1739461339820,0.5562,2660.2,2660.1,0.75181]
[1739461340118,0.75181,2660.1,2660.0,3.2078]
[1739461340416,0.5562,2660.2,2659.8,0.75188]
[1739461340922,0.75189,2659.8,2659.7,3.2078]
[1739461341116,0.5562,2660.2,2659.7,3.2078]
[1739461341622,0.75189,2659.8,2659.7,3.2078]
[1739461342718,0.5562,2660.2,2659.7,3.9597]
[1739461343022,0.75189,2659.8,2659.7,3.95972]
[1739461343521,0.75189,2659.8,2659.7,3.2078]
[1739461343718,0.75189,2659.8,2659.7,3.95972]
[1739461343921,0.75188,2659.9,2659.8,0.75189]
[1739461344631,0.75182,2660.1,2660.0,0.75182]
[1739461344830,0.5562,2660.2,2660.1,0.75181]
[1739461345018,0.75178,2660.2,2660.1,0.75181]
[1739461345214,0.75740249,2660.3,2659.8,2.44892]
[1739461345417,0.75740249,2660.3,2660.2,0.75178]
[1739461345925,0.75179,2660.2,2660.1,0.75179]
[1739461347227,0.00564249,2660.3,2660.2,0.75178]
[1739461347924,0.00564249,2660.3,2660.0,3.21344249]
[1739461348125,0.75181,2660.1,2660.0,3.21344249]
[1739461348430,1.29761,2660.2,2660.1,0.75181]
[1739461348635,0.75181,2660.1,2660.0,3.96527249]
[1739461348931,0.5458,2660.2,2660.1,0.75181]
[1739461349226,0.00564249,2660.3,2660.0,3.21344249]
[1739461349531,0.00564249,2660.3,2660.2,0.75178]
[1739461350023,3.88400417,2661.4,2660.2,6.0]
[1739461350230,0.75158,2660.9,2660.8,3.2078]
[1739461350527,0.75158,2660.9,2660.8,3.95941]
[1739461350730,0.75154,2661.1,2661.0,0.75155]
[1739461350925,3.2078,2661.3,2661.0,0.75155]
[1739461351225,3.21344249,2661.3,2660.9,0.75156]
[1739461351420,3.21344249,2661.3,2660.8,3.2078]
[1739461351623,0.00564249,2661.3,2660.8,3.2078]
[1739461351825,0.75153,2661.1,2661.0,0.75155]
[1739461352217,0.00564249,2661.3,2660.8,3.2078]
[1739461352426,0.75712249,2661.3,2661.1,0.75153]
[1739461352632,0.00564249,2661.3,2661.1,0.75153]
[1739461352928,0.00564249,2661.3,2661.1,3.95933]
[1739461353623,2.2254,2661.2,2661.1,3.2078]
[1739461353825,1.4739,2661.2,2660.8,3.2078]
[1739461354128,0.75158,2660.9,2660.8,3.2078]
[1739461354526,2.5992,2661.2,2660.8,3.2078]
[1739461354821,2.0193,2661.2,2660.8,3.2078]
[1739461355022,3.88400417,2661.0,2660.5,3.2078]
[1739461355328,0.75174,2660.4,2660.2,3.2078]
[1739461355532,5.08677,2660.9,2660.3,0.75174]
[1739461355727,0.75171,2660.5,2660.3,0.75174]
[1739461355924,0.75171,2660.5,2660.3,0.75175]
[1739461356130,0.5936,2660.8,2660.3,0.75174]
[1739461356626,0.75169,2660.6,2660.3,0.75174]
[1739461356827,0.75169,2660.6,2660.2,3.2078]
[1739461357026,0.75169,2660.6,2660.4,0.75172]
[1739461357222,0.5936,2660.8,2660.4,0.75171]
[1739461357427,0.5936,2660.8,2660.2,3.95956]
[1739461357630,0.75171,2660.5,2660.2,3.2078]
[1739461357932,0.75171,2660.5,2660.3,0.75175]
[1739461359135,0.5936,2660.8,2660.2,3.2078]
[1739461359637,3.88400417,2660.7,2660.2,3.2078]
[1739461359831,0.75175,2660.3,2660.2,3.2078]
[1739461360639,0.5517,2660.3,2660.2,3.2078]
[1739461361038,1.30345,2660.3,2660.2,3.2078]
[1739461361937,0.5517,2660.3,2660.2,3.95958]
[1739461362332,1.30345,2660.3,2660.2,3.2078]
[1739461363437,1.30345,2660.3,2660.2,3.95958]
[1739461363734,1.30345,2660.3,2660.2,3.2078]
[1739461364432,1.30345,2660.3,2660.2,3.95958]
[1739461364940,0.5517,2660.3,2660.2,3.95958]
[1739461365840,2.5696,2660.8,2660.2,3.2078]
[1739461366034,0.75168,2660.6,2660.5,0.75169]
[1739461366242,0.75172,2660.5,2660.4,0.75172]
[1739461366841,3.1579,2660.8,2660.2,3.2078]
[1739461367040,0.75174,2660.4,2660.3,0.75174]
[1739461367239,0.75171,2660.5,2660.4,0.75171]
[1739461368346,0.75172,2660.5,2660.4,0.75171]
[1739461368547,0.75175,2660.3,2660.2,3.2078]
[1739461369041,1.87921,2660.6,2660.0,0.00564249]
[1739461369042,3.88400417,2660.4,2660.0,0.00564249]
[1739461369242,0.75181,2660.1,2660.0,0.75748249]
[1739461369448,1.328,2660.2,2660.1,0.75181]
[1739461369649,0.75181,2660.1,2660.0,0.75745249]
[1739461370645,0.5762,2660.2,2660.0,0.00564249]
[1739461370847,0.75181,2660.1,2660.0,0.75746249]
[1739461371245,1.32799,2660.2,2660.1,0.75181]
[1739461371445,0.5762,2660.2,2660.0,0.00564249]
[1739461371648,1.32799,2660.2,2660.1,0.75181]
[1739461372047,1.976,2660.7,2660.0,0.00564249]
[1739461372255,2.72767,2660.7,2660.6,0.75166]
[1739461372441,1.33992,2660.8,2660.7,0.75164]
[1739461372649,0.75165,2660.7,2660.6,0.75165]
[1739461373246,1.33994,2660.8,2660.7,0.75164]
[1739461373548,1.33992,2660.8,2660.7,0.75164]
[1739461373752,0.5883,2660.8,2660.3,2.42197]
[1739461373946,0.5883,2660.8,2660.3,0.5426]
[1739461374140,3.33459519,2660.7,2660.2,3.2078]
[1739461374342,3.33459519,2660.7,2660.6,0.75167]
[1739461374343,4.08624519,2660.7,2660.6,0.75167]
[1739461374544,0.75165,2660.7,2660.6,0.75167]
[1739461374746,0.5883,2660.8,2660.7,0.75164]
[1739461375449,1.33991,2660.8,2660.7,0.75164]
[1739461375654,0.75164,2660.7,2660.6,0.75166]
[1739461375843,0.75167,2660.6,2660.5,3.95948]
[1739461376040,0.75167,2660.6,2660.2,3.2078]
[1739461376250,0.5883,2660.8,2660.2,3.2078]
[1739461376449,3.33459519,2660.7,2660.3,0.75174]
[1739461376651,0.75174,2660.4,2660.2,3.95956]
[1739461376854,0.75175,2660.3,2660.2,3.2078]
[1739461377058,3.33459519,2660.4,2660.2,3.95956]
[1739461377249,3.33459519,2660.4,2660.2,3.2078]
[1739461377455,0.75175,2660.3,2660.2,3.2078]
[1739461377955,4.08633519,2660.4,2660.2,3.95955]
[1739461378155,3.91219519,2660.7,2660.2,3.2078]
[1739461378658,0.75174,2660.4,2660.2,3.95957]
[1739461378948,3.91219519,2660.7,2660.2,3.2078]
[1739461379456,0.75168,2660.6,2660.2,3.2078]
[1739461379665,3.91219519,2660.7,2660.2,3.2078]
[1739461379959,0.5776,2660.7,2660.6,0.75167]
[1739461380355,1.32924,2660.7,2660.6,0.75167]
[1739461380661,3.33459519,2661.0,2660.8,0.7516]
[1739461380850,3.33459519,2661.0,2660.3,0.5785]
[1739461380851,0.75163,2660.8,2660.3,1.1643]
[1739461381053,0.75163,2660.8,2660.6,0.75165]
[1739461381360,3.33459519,2661.0,2660.5,3.2078]
[1739461381549,3.33459519,2661.0,2660.6,0.75165]
[1739461381747,3.33459519,2661.0,2660.5,3.2078]
[1739461382156,0.75162,2660.8,2660.7,0.75163]
[1739461382360,0.561,2660.9,2660.7,0.75163]
[1739461382559,3.33459519,2661.0,2660.5,3.2078]
[1739461382560,3.95935,2661.1,2660.6,1.87918]
[1739461382855,3.95935,2661.1,2661.0,0.75156]
[1739461383361,3.95935,2661.1,2660.9,0.75157]
[1739461383558,3.2078,2661.1,2661.0,0.75156]
[1739461384655,3.2078,2661.1,2660.8,0.75159]
[1739461384851,0.75158,2660.9,2660.8,0.75159]
[1739461385052,0.75156,2661.0,2660.5,5.087]
[1739461385265,3.2078,2661.1,2660.7,0.75162]
[1739461385459,3.2078,2661.1,2660.5,3.2078]
[1739461385654,0.5455,2661.2,2660.6,1.87918]
[1739461385958,0.5455,2661.2,2660.8,3.2078]
[1739461386166,0.5455,2661.2,2661.1,0.75153]
[1739461387580,0.00564249,2661.3,2661.2,0.7515]
[1739461387886,0.00564249,2661.3,2661.2,3.9593]
[1739461388287,0.88384,2661.7,2661.6,0.75139]
[1739461388484,0.5686,2662.4,2662.3,0.75119]
[1739461388681,0.5622,2662.7,2662.6,0.7511]
[1739461388885,3.33459519,2662.8,2662.6,0.7511]
[1739461389086,1.31312,2663.3,2663.0,0.75099]
[1739461389288,0.87012745,2663.3,2663.0,3.2078]
[1739461389487,0.75097,2663.1,2663.0,3.2078]
[1739461389792,0.75099,2663.0,2662.9,0.00564249]
[1739461390290,4.08556519,2663.1,2662.9,0.00564249]
[1739461390487,3.33459519,2663.1,2662.9,0.00564249]
[1739461391387,0.75099,2663.0,2662.9,0.00564249]
[1739461391584,4.62570526,2663.0,2662.9,0.00564249]
[1739461393786,0.5557,2663.2,2662.9,0.75664249]
[1739461394190,1.45922745,2663.3,2663.0,3.95877]
[1739461394390,1.45922745,2663.3,2663.0,3.2078]
[1739461394588,0.87012745,2663.3,2663.2,0.75093]
[1739461394894,0.00564249,2663.4,2663.3,0.75091]
[1739461395188,0.00564249,2663.4,2663.3,3.95871]
[1739461395687,0.75065,2664.2,2663.9,0.75073]
[1739461395883,3.2078,2664.3,2664.2,0.75065]
[1739461395884,0.5823,2664.3,2664.2,0.75065]
[1739461396086,0.75057,2664.5,2664.3,0.75061]
[1739461396293,0.75055,2664.6,2664.4,3.2078]
[1739461396592,0.5823,2664.8,2664.4,3.2078]
[1739461396888,0.75056,2664.6,2664.4,3.2078]
[1739461397088,0.75056,2664.6,2664.3,0.75624158]
[1739461397089,4.76560109,2664.8,2664.3,0.00563158]
[1739461397389,0.7506,2664.4,2664.3,0.00563158]
[1739461398789,7.08251526,2664.5,2664.0,3.2078]
[1739461398984,7.08251526,2664.5,2663.5,3.2078]
[1739461398985,0.75075,2663.9,2663.5,3.2078]
[1739461399193,0.5863,2664.3,2663.5,3.2078]
[1739461399380,0.5863,2664.3,2663.6,0.75082]
[1739461399582,0.5863,2664.3,2663.5,3.2078]
[1739461399787,3.2078,2664.2,2663.5,3.95864]
[1739461399987,3.2078,2664.2,2663.6,0.00563158]
[1739461400196,0.75075,2663.9,2663.6,0.00563158]
[1739461400495,1.972,2664.1,2663.7,0.75078]
[1739461400687,1.972,2664.1,2663.6,0.00563158]
[1739461400996,2.72269,2664.1,2663.8,3.95855]
[1739461401292,1.972,2664.1,2663.8,3.2078]
[1739461401488,1.972,2664.1,2663.6,0.00563158]
[1739461402488,0.75079,2663.7,2663.6,3.21343158]
[1739461403893,1.972,2664.1,2663.6,3.21343158]
[1739461404091,0.5863,2664.3,2663.6,3.21343158]
[1739461404283,3.7941,2664.3,2663.6,0.00563158]
[1739461404596,0.5863,2664.3,2663.6,0.00563158]
[1739461404797,0.75076,2663.9,2663.6,0.75643158]
[1739461404990,0.75077,2663.8,2663.6,0.75643158]
[1739461405290,0.5863,2664.3,2663.6,0.00563158]
[1739461405497,0.75071,2664.0,2663.8,0.75075]
[1739461405997,0.5863,2664.3,2663.6,0.00563158]
[1739461406300,0.75077,2663.8,2663.7,0.75078]
[1739461406593,0.75079,2663.7,2663.6,0.00563158]
[1739461406893,0.75077,2663.8,2663.7,0.75079]
[1739461407082,0.75077,2663.8,2663.6,0.75644158]
[1739461407286,0.75078,2663.8,2663.6,0.75644158]
[1739461407481,0.5863,2664.3,2663.6,0.00563158]
[1739461407687,3.2078,2665.0,2664.2,3.2078]
[1739461407897,5.08391,2665.0,2664.5,0.75056]
[1739461408197,5.08391,2665.0,2664.2,3.2078]
[1739461408588,0.75061,2664.4,2664.2,3.2078]
[1739461408789,0.75058,2664.5,2664.3,0.7506]
[1739461408990,0.75058,2664.5,2664.2,3.2078]
[1739461409292,0.00372531,2664.9,2664.2,3.2078]
[1739461409293,0.75062,2664.3,2664.2,3.2078]
[1739461409489,0.00372531,2664.9,2664.2,3.2078]
[1739461409888,0.75054,2664.6,2664.4,0.75057]
[1739461410092,0.00372531,2664.9,2664.2,3.2078]
[1739461410289,0.7506,2664.4,2664.2,3.2078]
[1739461410486,0.00372531,2664.9,2664.2,3.2078]
[1739461410893,1.87991531,2664.9,2664.2,3.2078]
[1739461411095,0.75061,2664.4,2664.2,3.95843]
[1739461411493,0.00372531,2664.9,2664.2,3.2078]
[1739461411698,0.00372531,2664.9,2664.8,0.75048]
[1739461412491,0.00372531,2664.9,2664.8,1.33368]
[1739461412691,0.00372531,2664.9,2664.8,1.88348]
[1739461412891,0.00372531,2664.9,2664.8,1.33368]
[1739461413096,0.75048,2664.8,2664.7,3.2078]
[1739461414094,0.75057,2664.5,2664.4,3.7888]
[1739461414500,0.00372531,2664.9,2664.4,3.7888]
[1739461414695,0.75057,2664.5,2664.4,3.7888]
[1739461414890,0.56332531,2664.9,2664.4,3.7888]
[1739461415195,0.75055,2664.6,2664.4,4.53938]
[1739461415898,0.56332531,2664.9,2664.4,3.7888]
[1739461416288,0.56332531,2664.9,2664.4,4.53939]
[1739461416589,0.75052,2664.7,2664.5,0.75056]
[1739461416795,0.75054,2664.6,2664.4,4.53938]
[1739461416993,0.56332531,2664.9,2664.4,3.7888]
[1739461417392,0.75057,2664.5,2664.4,3.7888]
[1739461417689,0.75057,2664.5,2664.4,3.2078]
[1739461418700,1.969,2664.8,2664.4,3.2078]